bitfinex/quotes_BTCUSD_20250714
["timestamp","ask_amount","ask_price","bid_price","bid_amount"]
[1752509634712,1.48105287,119450.0,119440.0,0.01860331]
[1752509635169,1.48305287,119450.0,119440.0,0.01860331]
[1752509635599,1.34989287,119450.0,119440.0,0.01860331]
[1752509635809,1.49759372,119450.0,119440.0,0.01860331]
[1752509636427,1.49059372,119450.0,119440.0,0.01760331]
[1752509636672,2.02660378,119450.0,119440.0,0.01760331]
[1752509637085,2.10792112,119450.0,119440.0,0.01760331]
[1752509637783,2.10792112,119450.0,119440.0,0.01560331]
[1752509638000,0.02512645,119390.0,119380.0,0.002]
[1752509638226,0.29982186,119390.0,119380.0,0.002]
[1752509638445,0.29982286,119390.0,119380.0,0.002]
[1752509638670,0.29982286,119390.0,119380.0,0.06686]
[1752509638671,0.26632,119390.0,119380.0,0.06686]
[1752509638892,0.26632,119390.0,119380.0,0.0679143]
[1752509639319,0.26632,119390.0,119380.0,0.21497253]
[1752509639531,0.26632,119390.0,119380.0,0.21443028]
[1752509639977,0.26632,119390.0,119380.0,0.39133913]
[1752509640194,0.26632,119390.0,119380.0,0.21543028]
[1752509641281,0.26632,119390.0,119380.0,0.11891916]
[1752509641499,0.26632,119390.0,119380.0,0.00351205]
[1752509641500,0.9728507,119390.0,119380.0,0.00351205]
[1752509641720,0.96447536,119390.0,119380.0,0.00351205]
[1752509641929,0.95907988,119390.0,119380.0,0.00351205]
[1752509642395,0.97362073,119390.0,119380.0,0.00351205]
[1752509642658,1.00622073,119390.0,119380.0,0.00351205]
[1752509642878,1.19888518,119390.0,119380.0,0.00351205]
[1752509643330,1.12146648,119390.0,119380.0,0.00251205]
[1752509643584,0.47200931,119390.0,119380.0,0.00251205]
[1752509643832,0.96914367,119390.0,119380.0,0.00251205]
[1752509644044,0.97114367,119390.0,119380.0,0.01351205]
[1752509644705,0.97114367,119390.0,119380.0,0.01551205]
[1752509645175,0.97114367,119390.0,119380.0,0.01351205]
[1752509645381,0.97214367,119390.0,119380.0,0.01351205]
[1752509646050,1.08659078,119390.0,119380.0,0.01351205]
[1752509646297,1.16790812,119390.0,119380.0,0.01351205]
[1752509646524,1.53790812,119390.0,119380.0,0.01351205]
[1752509646755,1.53590812,119390.0,119380.0,0.00251205]
[1752509647237,0.88598072,119390.0,119380.0,0.00251205]
[1752509647495,1.39149078,119390.0,119380.0,0.00251205]
[1752509647993,0.47094931,119390.0,119380.0,0.00551205]
[1752509648461,0.97943937,119390.0,119380.0,0.00551205]
[1752509649540,0.46555361,119390.0,119380.0,0.00551205]
[1752509649754,0.97106367,119390.0,119380.0,0.00551205]
[1752509650668,1.00166367,119390.0,119380.0,0.00551205]
[1752509650895,1.19742812,119390.0,119380.0,0.00551205]
[1752509651112,1.53742812,119390.0,119380.0,0.00551205]
[1752509651337,1.45611078,119390.0,119380.0,0.00551205]
[1752509652601,1.42301078,119390.0,119380.0,0.00551205]
[1752509654149,1.45451078,119390.0,119380.0,0.00551205]
[1752509657417,1.45451078,119390.0,119360.0,0.002]
[1752509657418,0.74673351,119370.0,119360.0,0.002]
[1752509657635,1.77643796,119370.0,119360.0,0.002]
[1752509657884,1.77941796,119370.0,119360.0,0.002]
[1752509658101,1.37741796,119370.0,119360.0,0.002]
[1752509658812,1.37841796,119370.0,119360.0,0.004]
[1752509659527,1.37941796,119370.0,119360.0,0.004]
[1752509659965,1.29810062,119370.0,119360.0,0.004]
[1752509660191,1.09722062,119370.0,119360.0,0.004]
[1752509660437,1.06492062,119370.0,119360.0,0.004]
[1752509660650,1.09532062,119370.0,119360.0,0.004]
[1752509661759,0.58981056,119370.0,119360.0,0.004]
[1752509661978,1.09532062,119370.0,119360.0,0.004]
[1752509662184,0.79876062,119370.0,119360.0,0.004]
[1752509662401,0.76576062,119370.0,119360.0,0.004]
[1752509662620,0.26862766,119370.0,119360.0,0.004]
[1752509662862,0.73872766,119370.0,119360.0,0.004]
[1752509663090,1.24423772,119370.0,119360.0,0.004]
[1752509663311,1.11115772,119370.0,119360.0,0.004]
[1752509663522,0.15183357,119370.0,119360.0,0.004]
[1752509663739,0.0297483,119370.0,119360.0,0.004]
[1752509663953,0.13769791,119370.0,119360.0,0.06964]
[1752509664167,0.13508,119370.0,119360.0,0.06964]
[1752509664399,0.002,119370.0,119360.0,0.06964]
[1752509664617,0.13508,119370.0,119360.0,0.06964]
[1752509664841,0.002,119370.0,119360.0,0.34368062]
[1752509665070,0.001,119370.0,119360.0,0.34168062]
[1752509665302,0.001,119370.0,119360.0,0.84919068]
[1752509665562,0.00441063,119390.0,119380.0,0.18428525]
[1752509665774,0.00441063,119390.0,119380.0,0.85049487]
[1752509665993,0.00441063,119390.0,119380.0,0.33660869]
[1752509666203,0.00441063,119390.0,119380.0,0.33127236]
[1752509666380,0.00441063,119390.0,119380.0,0.33964869]
[1752509666624,0.00441063,119390.0,119380.0,0.14698711]
[1752509667476,0.27049063,119390.0,119380.0,0.14698711]
[1752509667923,0.27049063,119390.0,119380.0,0.31557365]
[1752509668206,0.27249063,119390.0,119380.0,0.32389596]
[1752509668425,0.00251199,119390.0,119380.0,0.85453487]
[1752509668652,0.00251199,119390.0,119380.0,1.19453487]
[1752509668867,0.00251199,119390.0,119380.0,1.19653487]
[1752509669085,0.00251199,119390.0,119380.0,1.39528599]
[1752509669543,0.002,119410.0,119400.0,0.74608937]
[1752509669761,0.002,119410.0,119400.0,0.14613286]
[1752509669981,0.002,119410.0,119400.0,0.15556143]
[1752509670196,0.002,119410.0,119400.0,0.1502463]
[1752509670415,0.01037394,119410.0,119400.0,0.1502463]
[1752509670630,0.01037394,119410.0,119400.0,0.14919286]
[1752509670631,0.47740097,119410.0,119400.0,0.14919286]
[1752509670843,0.26804,119410.0,119400.0,0.14919286]
[1752509671062,0.29316196,119410.0,119400.0,0.14919286]
[1752509671501,0.30153632,119410.0,119400.0,0.14919286]
[1752509671734,0.45227866,119410.0,119400.0,0.14919286]
[1752509671981,0.45227866,119410.0,119400.0,0.15019286]
[1752509672199,0.46265316,119410.0,119400.0,0.15019286]
[1752509672409,0.45427901,119410.0,119400.0,0.16483675]
[1752509673725,0.45427901,119410.0,119400.0,0.14919286]
[1752509673940,0.45427901,119410.0,119400.0,0.16483856]
[1752509674156,0.29516301,119410.0,119400.0,0.16483856]
[1752509674369,0.28678851,119410.0,119400.0,0.16483856]
[1752509674584,0.45427866,119410.0,119400.0,0.16483856]
[1752509675023,0.95978872,119410.0,119400.0,0.01573145]
[1752509675241,0.29516301,119410.0,119400.0,0.01879145]
[1752509675458,0.45419901,119410.0,119400.0,0.01879145]
[1752509675675,0.44582465,119410.0,119400.0,0.01879145]
[1752509676593,0.27833408,119410.0,119400.0,0.16243856]
[1752509676823,0.004,119410.0,119400.0,0.84382786]
[1752509677042,0.004,119410.0,119400.0,0.86057749]
[1752509677258,0.45419873,119410.0,119400.0,0.13113856]
[1752509677481,0.45419838,119410.0,119400.0,0.10013856]
[1752509677696,0.46257274,119410.0,119400.0,0.16383856]
[1752509677910,0.46257344,119410.0,119400.0,0.16383856]
[1752509678131,0.45219908,119410.0,119400.0,0.16383856]
[1752509678341,0.45319908,119410.0,119400.0,0.09707856]
[1752509678549,0.95870914,119410.0,119400.0,0.01573145]
[1752509678980,0.97637999,119410.0,119400.0,0.01573145]
[1752509679623,0.95870914,119410.0,119400.0,0.01573145]
[1752509679837,0.45319908,119410.0,119400.0,0.01573145]
[1752509680438,0.45219908,119410.0,119400.0,0.01573145]
[1752509681996,0.16753224,119380.0,119360.0,0.002]
[1752509682222,0.79900221,119370.0,119360.0,0.002]
[1752509682443,1.69411351,119370.0,119360.0,0.002]
[1752509682668,1.69724351,119370.0,119360.0,0.002]
[1752509682883,1.31889164,119370.0,119360.0,0.002]
[1752509683091,1.37548436,119370.0,119360.0,0.002]
[1752509683779,1.02984135,119350.0,119340.0,0.002]
[1752509684003,0.79861129,119350.0,119340.0,0.002]
[1752509684211,1.30725135,119350.0,119340.0,0.002]
[1752509684630,1.70725135,119350.0,119340.0,0.002]
[1752509685931,0.51596767,119340.0,119330.0,0.01669223]
[1752509686145,1.02147773,119340.0,119330.0,0.01669223]
[1752509686356,1.02460773,119340.0,119330.0,0.01669223]
[1752509686789,1.05520773,119340.0,119330.0,0.01669223]
[1752509687016,1.06974858,119340.0,119330.0,0.01669223]
[1752509687888,0.25452327,119330.0,119320.0,0.0022]
[1752509688112,1.23808333,119330.0,119320.0,0.0022]
[1752509688345,1.31943044,119330.0,119320.0,0.0022]
[1752509688593,0.74590723,119320.0,119310.0,0.10154121]
[1752509689036,0.74903723,119320.0,119310.0,0.10154121]
[1752509689263,0.83038434,119320.0,119310.0,0.1020532]
[1752509689475,0.84492519,119320.0,119310.0,0.1020532]
[1752509689691,0.91250959,119320.0,119310.0,0.1020532]
[1752509689895,0.84492519,119320.0,119310.0,0.1020532]
[1752509690347,1.18492519,119320.0,119310.0,1e-08]
[1752509690579,1.18392519,119320.0,119310.0,1e-08]
[1752509690763,1.58392519,119320.0,119310.0,1e-08]
[1752509691005,1.58592519,119320.0,119310.0,1e-08]
[1752509691185,1.58692519,119320.0,119310.0,1e-08]
[1752509691433,1.18392519,119320.0,119310.0,1e-08]
[1752509691641,1.18692519,119320.0,119310.0,1e-08]
[1752509691852,1.18992519,119320.0,119310.0,0.00100001]
[1752509692068,1.246002,119320.0,119310.0,1e-08]
[1752509692285,1.19381383,119320.0,119310.0,1e-08]
[1752509693165,1.46781383,119320.0,119310.0,1e-08]
[1752509693631,1.40341383,119320.0,119310.0,1e-08]
[1752509693836,0.66188581,119320.0,119310.0,1e-08]
[1752509694070,0.66188581,119320.0,119310.0,0.01562231]
[1752509694764,0.52488581,119320.0,119310.0,0.01562231]
[1752509694981,0.66180581,119320.0,119310.0,0.01562231]
[1752509695464,0.18488581,119320.0,119310.0,0.01562231]
[1752509695677,0.32180581,119320.0,119310.0,0.08198231]
[1752509695909,0.19326642,119320.0,119310.0,0.08198231]
[1752509696145,0.19326642,119320.0,119310.0,0.06636001]
[1752509696146,0.33014642,119320.0,119310.0,0.06636001]
[1752509696357,0.33014642,119320.0,119310.0,0.04877364]
[1752509696578,0.33010642,119320.0,119310.0,0.04877364]
[1752509696800,0.32710642,119320.0,119310.0,0.04877363]
[1752509697019,0.32710642,119320.0,119310.0,0.04977363]
[1752509697248,0.19026642,119320.0,119310.0,0.08007363]
[1752509697507,0.31884581,119320.0,119310.0,0.08007363]
[1752509697720,0.02264979,119320.0,119310.0,0.16142074]
[1752509697926,0.16487054,119320.0,119310.0,0.16142074]
[1752509698130,0.02064923,119320.0,119310.0,0.82838655]
[1752509698335,0.15752923,119320.0,119310.0,0.83571047]
[1752509698515,0.1659097,119320.0,119310.0,0.83571047]
[1752509698770,0.1659097,119320.0,119310.0,0.33020048]
[1752509698983,0.17429031,119320.0,119310.0,0.33858179]
[1752509699206,0.15752923,119320.0,119310.0,0.35534413]
[1752509699437,0.16590963,119320.0,119310.0,0.34696303]
[1752509699666,0.18267078,119320.0,119310.0,0.33020048]
[1752509700145,0.32514663,119320.0,119310.0,0.14580711]
[1752509700383,0.32514663,119320.0,119310.0,0.1135045]
[1752509700615,0.83065669,119320.0,119310.0,0.001]
[1752509700859,1.25519403,119320.0,119310.0,0.001]
[1752509701127,1.20517669,119320.0,119310.0,0.001]
[1752509701354,1.70106465,119320.0,119310.0,0.001]
[1752509701592,1.66976465,119320.0,119310.0,0.001]
[1752509701824,0.51601192,119310.0,119300.0,0.10245]
[1752509702284,0.52439323,119310.0,119300.0,0.10245]
[1752509703448,0.52539323,119310.0,119300.0,0.10245]
[1752509703669,1.03090329,119310.0,119300.0,0.10245]
[1752509703971,0.52739323,119310.0,119300.0,0.10245]
[1752509704452,1.03290329,119310.0,119300.0,0.10245]
[1752509704885,1.03612329,119310.0,119300.0,0.10245]
[1752509705546,0.53061323,119310.0,119300.0,0.10245]
[1752509705765,1.06892329,119310.0,119300.0,0.10245]
[1752509705981,0.66423323,119310.0,119300.0,0.10245]
[1752509707725,0.66411323,119310.0,119300.0,0.10245]
[1752509707930,0.52739323,119310.0,119300.0,0.10245]
[1752509708134,0.66407323,119310.0,119300.0,0.10245]
[1752509708347,0.52739323,119310.0,119300.0,0.10245]
[1752509708555,0.66403323,119310.0,119300.0,0.10245]
[1752509709427,0.52739323,119310.0,119300.0,0.10245]
[1752509709640,0.66403323,119310.0,119300.0,0.10245]
[1752509709843,1.17276329,119310.0,119300.0,0.10245]
[1752509710064,0.003,119310.0,119300.0,0.18676711]
[1752509710321,0.003,119310.0,119300.0,0.94866751]
[1752509710746,0.13968,119310.0,119300.0,0.94866751]
[1752509710963,0.003,119310.0,119300.0,0.94866751]
[1752509711184,0.003,119310.0,119300.0,1.85871842]
[1752509711185,0.001,119310.0,119300.0,1.85871842]
[1752509711413,0.00051141,119320.0,119310.0,0.25637426]
[1752509711644,0.00051141,119320.0,119310.0,3.32296855]
[1752509711854,0.01037808,119350.0,119340.0,0.76183578]
[1752509711855,0.01264535,119350.0,119340.0,0.76183578]
[1752509712071,0.01264535,119350.0,119340.0,0.83495703]
[1752509712284,0.14086727,119350.0,119340.0,0.65358016]
[1752509712493,0.15762385,119350.0,119340.0,0.32403777]
[1752509712952,0.14924549,119350.0,119340.0,0.33241697]
[1752509713161,0.1885987,119350.0,119340.0,0.1144001]
[1752509713374,0.3251987,119350.0,119340.0,0.0815001]
[1752509714004,0.3261987,119350.0,119340.0,0.0835001]
[1752509714255,0.3251987,119350.0,119340.0,0.0815001]
[1752509714675,0.3251987,119350.0,119340.0,0.0825001]
[1752509714896,0.3168202,119350.0,119340.0,0.0825001]
[1752509715408,0.1574642,119350.0,119340.0,0.0825001]
[1752509715622,0.01264542,119350.0,119340.0,0.26143784]
[1752509715841,0.15742371,119350.0,119340.0,0.29173784]
[1752509716055,0.17418064,119350.0,119340.0,0.1157701]
[1752509716258,0.33337685,119350.0,119340.0,0.1157701]
[1752509716477,0.16580249,119350.0,119340.0,0.1157701]
[1752509716710,0.15742364,119350.0,119340.0,0.28441457]
[1752509716916,0.15742364,119350.0,119340.0,0.3133585]
[1752509717121,0.17418071,119350.0,119340.0,0.1457701]
[1752509717335,0.17418071,119350.0,119340.0,0.11385617]
[1752509717741,0.15742364,119350.0,119340.0,0.28144457]
[1752509717949,0.14054727,119350.0,119340.0,0.3333169]
[1752509718156,0.00426727,119350.0,119340.0,0.84720588]
[1752509718365,0.002,119350.0,119340.0,0.84720588]
[1752509718575,0.002,119350.0,119340.0,1.14320588]
[1752509720854,0.00427965,119350.0,119340.0,1.14320588]
[1752509721068,0.002,119350.0,119340.0,1.14320588]
[1752509721921,0.002,119350.0,119340.0,1.27924588]
[1752509722132,0.002,119350.0,119340.0,2.68216188]
[1752509722338,0.002,119350.0,119340.0,3.62833173]
[1752509722553,0.002,119350.0,119340.0,3.20221373]
[1752509722768,0.002,119350.0,119340.0,3.25221373]
[1752509723043,0.7285393,119350.0,119340.0,0.0815001]
[1752509723254,1.6836744,119350.0,119340.0,0.00315299]
[1752509723466,0.59322924,119350.0,119340.0,0.00315299]
[1752509723676,0.55980924,119350.0,119340.0,0.00315299]
[1752509723890,0.02103488,119350.0,119340.0,0.28457241]
[1752509724100,0.01265589,119350.0,119340.0,0.54726611]
[1752509724329,0.02103411,119350.0,119340.0,0.62191503]
[1752509724757,0.00927781,119350.0,119340.0,1.56126303]
[1752509724974,0.007,119350.0,119340.0,1.56126303]
[1752509725218,0.0187542,119370.0,119360.0,0.19269351]
[1752509725219,0.002,119370.0,119360.0,0.19269351]
[1752509725462,0.002,119370.0,119360.0,1.96099668]
[1752509725709,0.002,119370.0,119360.0,2.02850753]
[1752509726209,0.002,119370.0,119360.0,1.46440847]
[1752509726422,0.002,119370.0,119360.0,1.79620853]
[1752509726854,0.01037668,119370.0,119360.0,0.61593062]
[1752509727078,0.01037668,119370.0,119360.0,0.88737862]
[1752509727293,0.002,119370.0,119360.0,1.07647762]
[1752509727503,0.002,119370.0,119360.0,1.58198768]
[1752509727716,0.002,119370.0,119360.0,1.58298768]
[1752509727931,0.002,119370.0,119360.0,1.64752853]
[1752509728156,0.002,119370.0,119360.0,2.28352853]
[1752509728364,0.002,119370.0,119360.0,2.84448553]
[1752509728809,0.00138226,119370.0,119360.0,2.84448553]
[1752509729039,0.00138226,119370.0,119360.0,2.33897547]
[1752509729253,0.00138226,119370.0,119360.0,1.82398153]
[1752509729517,0.00138226,119370.0,119360.0,3.22048953]
[1752509729730,0.00138226,119370.0,119360.0,1.77583847]
[1752509729949,0.00138226,119370.0,119360.0,2.19884553]
[1752509730369,0.00138226,119370.0,119360.0,3.40070453]
[1752509731278,0.00138226,119370.0,119360.0,3.14452779]
[1752509731506,0.18433129,119350.0,119340.0,0.00015299]
[1752509731738,1.11357135,119350.0,119340.0,0.00015299]
[1752509731953,2.15640141,119350.0,119340.0,0.00015299]
[1752509732202,1.22009135,119350.0,119340.0,0.00015299]
[1752509732622,1.08277135,119350.0,119340.0,0.00015299]
[1752509733050,1.35121794,119350.0,119340.0,0.00015299]
[1752509733258,1.35121794,119350.0,119340.0,0.00115299]
[1752509733483,1.35221794,119350.0,119340.0,0.00115299]
[1752509733914,0.71458129,119350.0,119340.0,0.00115299]
[1752509734143,0.66161129,119350.0,119340.0,0.00115299]
[1752509734361,0.66554129,119350.0,119340.0,0.00115299]
[1752509735440,0.341,119350.0,119340.0,0.25952391]
[1752509735654,0.49495665,119350.0,119340.0,0.26684704]
[1752509736065,0.37451379,119350.0,119340.0,0.2742261]
[1752509736067,0.54208815,119350.0,119340.0,0.25746784]
[1752509736267,0.36613515,119350.0,119340.0,0.27422603]
[1752509736496,0.34937822,119350.0,119340.0,0.38260509]
[1752509736853,0.17167372,119350.0,119340.0,0.38260516]
[1752509737075,0.15491658,119350.0,119340.0,0.39098408]
[1752509737286,0.001,119350.0,119340.0,0.39403408]
[1752509738152,0.001,119350.0,119340.0,0.70139408]
[1752509738370,0.04326734,119370.0,119360.0,0.17593819]
[1752509738604,1.18170296,119370.0,119340.0,0.10015299]
[1752509738812,1.18170296,119370.0,119300.0,0.10245]
[1752509738813,0.24171192,119310.0,119300.0,0.10245]
[1752509739029,0.84358192,119310.0,119300.0,0.10245]
[1752509739250,0.58570475,119310.0,119300.0,0.10245]
[1752509739468,0.66171344,119310.0,119300.0,0.10245]
[1752509739683,0.18439309,119310.0,119300.0,0.35982392]
[1752509739922,0.32398944,119310.0,119300.0,0.18379711]
[1752509740349,0.00242968,119310.0,119300.0,0.35982392]
[1752509740570,0.00242968,119310.0,119300.0,0.38801974]
[1752509740791,0.00015333,119310.0,119300.0,1.36893174]
[1752509741033,0.00015333,119310.0,119300.0,1.47968371]
[1752509741258,0.00115333,119310.0,119300.0,1.43565571]
[1752509741487,0.00953422,119310.0,119300.0,0.40175607]
[1752509741711,0.82218314,119310.0,119300.0,0.18379711]
[1752509741929,0.82411314,119310.0,119300.0,0.18379711]
[1752509742160,0.82611314,119310.0,119300.0,0.10245]
[1752509742402,0.82411314,119310.0,119300.0,0.10245]
[1752509742604,0.87411314,119310.0,119300.0,0.10245]
[1752509743040,0.87411314,119310.0,119300.0,0.0605529]
[1752509743490,0.87511314,119310.0,119300.0,0.0605529]
[1752509743894,0.23847649,119310.0,119300.0,0.0605529]
[1752509744104,0.87511314,119310.0,119300.0,0.0605529]
[1752509744317,0.23847649,119310.0,119300.0,0.0605529]
[1752509744534,0.23947649,119310.0,119300.0,0.0605529]
[1752509744771,0.18654649,119310.0,119300.0,0.24496151]
[1752509744979,0.15595532,119310.0,119300.0,0.33469035]
[1752509745186,0.15591525,119310.0,119300.0,0.33774035]
[1752509745411,0.13915333,119310.0,119300.0,0.33774035]
[1752509746120,0.15591539,119310.0,119300.0,0.33469035]
[1752509746540,0.16429656,119310.0,119300.0,0.33469035]
[1752509746750,0.13915333,119310.0,119300.0,0.33469035]
[1752509746957,0.00215333,119310.0,119300.0,0.33469035]
[1752509747164,0.0189156,119310.0,119300.0,0.33469035]
[1752509747396,0.00215333,119310.0,119300.0,0.33469035]
[1752509747604,0.00215333,119310.0,119300.0,0.33774035]
[1752509748006,0.00215333,119310.0,119300.0,0.37064035]
[1752509748692,0.18554649,119310.0,119300.0,0.14190001]
[1752509748907,0.32527649,119310.0,119300.0,0.0605529]
[1752509749776,0.32427649,119310.0,119300.0,0.0605529]
[1752509750225,1.43715787,119310.0,119300.0,0.0605529]
[1752509750429,0.71527649,119310.0,119300.0,0.0605529]
[1752509751305,0.66527649,119310.0,119300.0,0.0605529]
[1752509751519,1.41681314,119310.0,119300.0,0.0605529]
[1752509751731,1.41581314,119310.0,119300.0,0.0605529]
[1752509751941,1.41781314,119310.0,119300.0,0.0605529]
[1752509753874,1.5147011,119310.0,119300.0,0.0605529]
[1752509755219,1.56919241,119310.0,119300.0,0.01561649]
[1752509755441,1.56819241,119310.0,119300.0,1e-08]
[1752509755692,0.05,119240.0,119220.0,1.06994077]
[1752509755904,0.24006779,119230.0,119220.0,1.06994077]
[1752509756163,0.36324959,119230.0,119220.0,1.24608563]
[1752509756387,0.03354681,119230.0,119220.0,1.26286084]
[1752509756602,0.18451695,119230.0,119220.0,1.06994077]
[1752509756821,0.01677387,119230.0,119220.0,1.2460857]
[1752509757039,0.18685067,119230.0,119220.0,1.06994077]
[1752509757269,0.41659828,119230.0,119220.0,1.06994077]
[1752509757502,1.36191759,119230.0,119220.0,1.06839188]
[1752509757825,1.49919759,119230.0,119220.0,1.06839188]
[1752509757905,1.36191759,119230.0,119220.0,1.06839188]
[1752509758121,1.11721383,119230.0,119220.0,1.06839188]
[1752509758350,1.35385048,119230.0,119220.0,1.06839188]
[1752509758563,1.35385048,119230.0,119220.0,1.06939188]
[1752509758838,1.21657048,119230.0,119220.0,1.06939188]
[1752509759092,0.71721383,119230.0,119220.0,1.06839188]
[1752509759305,0.1830574,119230.0,119220.0,1.07144188]
[1752509759529,0.50914997,119230.0,119220.0,1.06839188]
[1752509759741,0.51407997,119230.0,119220.0,1.06839188]
[1752509759987,1.63603396,119230.0,119220.0,1.06839188]
[1752509760220,1.56925747,119230.0,119220.0,1.06839188]
[1752509760518,1.55471662,119230.0,119220.0,1.06839188]
[1752509760742,0.85407997,119230.0,119220.0,1.06939188]
[1752509760962,0.85407997,119230.0,119220.0,1.06839188]
[1752509761181,0.85607997,119230.0,119220.0,1.06839188]
[1752509761395,1.49498906,119230.0,119220.0,1.06839188]
[1752509761624,0.85435241,119230.0,119220.0,1.06839188]
[1752509761859,0.85535241,119230.0,119220.0,1.06939188]
[1752509762072,0.85435241,119230.0,119220.0,1.06939188]
[1752509762287,0.85435241,119230.0,119220.0,1.06839188]
[1752509762503,0.85535241,119230.0,119220.0,1.06839188]
[1752509762717,0.85635241,119230.0,119220.0,1.06839188]
[1752509762935,0.85342241,119230.0,119220.0,1.06839188]
[1752509763594,0.85667241,119230.0,119220.0,1.06839188]
[1752509764272,0.51342241,119230.0,119220.0,1.06839188]
[1752509764921,0.51667241,119230.0,119220.0,1.06839188]
[1752509765130,0.51342241,119230.0,119220.0,1.06839188]
[1752509766181,0.50503562,119230.0,119220.0,1.06839188]
[1752509766605,0.01281246,119230.0,119220.0,1.25292445]
[1752509766839,0.00215316,119230.0,119220.0,1.65010649]
[1752509767053,0.00215316,119230.0,119220.0,3.17315713]
[1752509767271,0.00215316,119230.0,119220.0,3.05960213]
[1752509767492,0.00215316,119230.0,119220.0,3.55646713]
[1752509767714,0.00215316,119230.0,119220.0,3.57100798]
[1752509767926,0.00115316,119230.0,119220.0,3.95808798]
[1752509768225,0.00115316,119230.0,119220.0,2.70834434]
[1752509768434,0.00115316,119230.0,119220.0,3.27488798]
[1752509768650,0.00115316,119230.0,119220.0,1.81763749]
[1752509768871,0.20244348,119230.0,119220.0,1.32888378]
[1752509769086,0.20244348,119230.0,119220.0,1.15273899]
[1752509769332,0.3310569,119230.0,119220.0,1.32888385]
[1752509769544,0.3310569,119230.0,119220.0,1.16112684]
[1752509769756,0.32267011,119230.0,119220.0,1.07139188]
[1752509769973,0.32167011,119230.0,119220.0,1.07139188]
[1752509770200,0.32167011,119230.0,119220.0,1.23614896]
[1752509770423,0.32267011,119230.0,119220.0,1.24953681]
[1752509770649,0.18467011,119230.0,119220.0,1.06839188]
[1752509770875,0.18467011,119230.0,119220.0,1.07039188]
[1752509770876,1.01082189,119230.0,119220.0,1.07039188]
[1752509771087,0.50349325,119230.0,119220.0,1.07139188]
[1752509771311,0.50349325,119230.0,119220.0,1.06939188]
[1752509771536,1.14137257,119230.0,119220.0,1.06939188]
[1752509771747,1.17457257,119230.0,119220.0,1.06939188]
[1752509771966,1.17457257,119230.0,119220.0,1.06839188]
[1752509772845,0.53669325,119230.0,119220.0,1.06839188]
[1752509773275,0.53769325,119230.0,119220.0,1.06839188]
[1752509773480,0.93769325,119230.0,119220.0,1.06839188]
[1752509773685,0.93869325,119230.0,119220.0,1.06839188]
[1752509773899,0.63153325,119230.0,119220.0,0.67650887]
[1752509774112,1.74633257,119230.0,119220.0,0.67650887]
[1752509774324,1.10845325,119230.0,119220.0,0.67650887]
[1752509774772,1.10745325,119230.0,119220.0,0.67650887]
[1752509774980,1.74433257,119230.0,119220.0,0.67650887]
[1752509775191,1.74633257,119230.0,119220.0,0.67650887]
[1752509775405,1.80903257,119230.0,119220.0,0.67650887]
[1752509775875,1.75345968,119230.0,119220.0,0.28108894]
[1752509776092,1.57169702,119230.0,119220.0,0.27670279]
[1752509776316,1.43477702,119230.0,119220.0,0.27670279]
[1752509776529,0.71758036,119230.0,119220.0,0.27670279]
[1752509776742,1.49145968,119230.0,119220.0,0.27670279]
[1752509776958,1.35345968,119230.0,119220.0,0.27670279]
[1752509777184,1.49153968,119230.0,119220.0,0.27670279]
[1752509777647,1.57585702,119230.0,119220.0,0.27670279]
[1752509778654,1.49453968,119230.0,119220.0,0.27670279]
[1752509779938,1.35645968,119230.0,119220.0,0.27670279]
[1752509780159,1.49429968,119230.0,119220.0,0.27670279]
[1752509781157,1.49429968,119230.0,119210.0,5.046e-05]
[1752509781158,0.63064479,119220.0,119210.0,5.046e-05]
[1752509781355,1.35312122,119220.0,119210.0,5.046e-05]
[1752509781714,1.49080122,119220.0,119210.0,5.046e-05]
[1752509782305,0.17939479,119220.0,119210.0,5.046e-05]
[1752509782518,0.37221243,119220.0,119210.0,5.046e-05]
[1752509782927,0.23453243,119220.0,119210.0,5.046e-05]
[1752509783112,0.24492028,119220.0,119210.0,5.046e-05]
[1752509783303,0.72364028,119220.0,119210.0,5.046e-05]
[1752509783507,0.205495,119220.0,119210.0,5.046e-05]
[1752509783745,0.72902708,119220.0,119210.0,5.046e-05]
[1752509783948,0.19610757,119220.0,119210.0,5.046e-05]
[1752509784173,0.22127049,119220.0,119210.0,5.046e-05]
[1752509784557,0.72064021,119220.0,119210.0,5.046e-05]
[1752509785832,0.00853967,119230.0,119220.0,0.18453243]
[1752509786046,0.21307304,119230.0,119210.0,0.30759284]
[1752509786281,0.15468625,119230.0,119220.0,0.16775708]
[1752509786498,0.33920328,119230.0,119210.0,0.29920534]
[1752509786728,0.00015316,119230.0,119220.0,0.27732683]
[1752509786941,0.13775316,119230.0,119220.0,0.2773269]
[1752509787141,0.13875316,119230.0,119220.0,0.26055197]
[1752509787344,0.14713981,119230.0,119220.0,0.26055197]
[1752509787653,0.00838736,119220.0,119210.0,0.03025046]
[1752509787860,0.00015316,119230.0,119220.0,0.17714486]
[1752509788065,0.14605967,119230.0,119220.0,0.26993954]
[1752509788273,0.00853967,119230.0,119220.0,0.26993961]
[1752509788477,0.19305676,119230.0,119220.0,0.08234711]
[1752509788646,0.33053676,119230.0,119220.0,0.08234711]
[1752509788864,0.36701325,119230.0,119220.0,0.001]
[1752509789043,0.86741257,119230.0,119220.0,0.001]
[1752509789238,0.86416257,119230.0,119220.0,0.001]
[1752509789445,1.63598814,119230.0,119220.0,0.001]
[1752509789848,1.26682411,119220.0,119210.0,5.046e-05]
[1752509790087,1.88892122,119220.0,119210.0,5.046e-05]
[1752509790301,1.48792122,119220.0,119210.0,1e-08]
[1752509790937,1.49092122,119220.0,119210.0,1e-08]
[1752509791132,1.57223856,119220.0,119210.0,1e-08]
[1752509791304,0.93435924,119220.0,119210.0,1e-08]
[1752509791548,1.57223856,119220.0,119210.0,1e-08]
[1752509791781,1.49092122,119220.0,119210.0,1e-08]
[1752509791993,1.49192122,119220.0,119210.0,1e-08]
[1752509793065,1.8703429,119220.0,119210.0,1e-08]
[1752509794410,1.3621924,119220.0,119210.0,1e-08]
[1752509794647,1.38796831,119220.0,119210.0,1e-08]
[1752509794882,0.62945957,119210.0,119200.0,1e-08]
[1752509795008,1.9333688,119210.0,119200.0,1e-08]
[1752509795238,1.9833688,119210.0,119200.0,1e-08]
[1752509795447,2.06468614,119210.0,119200.0,1e-08]
[1752509795640,1.94897502,119210.0,119200.0,1e-08]
[1752509795847,1.99897502,119210.0,119200.0,1e-08]
[1752509796043,1.94897502,119210.0,119200.0,1e-08]
[1752509796235,1.0827757,119160.0,119150.0,0.04852675]
[1752509796456,0.34839151,119160.0,119150.0,0.22477517]
[1752509796672,0.49422337,119160.0,119150.0,0.05150675]
[1752509796987,0.5026153,119160.0,119150.0,0.05150675]
[1752509797187,0.35578337,119160.0,119150.0,0.04852675]
[1752509797399,0.71102534,119160.0,119150.0,0.04852675]